Cogmind - Beta 15 @@@ ROGUE MODE // 2025.05.24 @ 13:16:08 Player: Cracklepappy Result: Self-destructed Performance ------------- Evolutions (3) 1500 Regions Visited (14) 2800 Robots Destroyed (343) 1715 Value Destroyed (10044) 10044 Prototype IDs (12) 240 Alien Tech Used (0) 0 Bonus (3919) 3919 TOTAL SCORE: 20218 Bonus ------- High Alert Combat Kills 1166 Follower Combat Kills 153 Entered Garrisons 600 Used RIF Installer 2000 Cogmind --------- Core Integrity 333/700 Matter 112/300 Energy 20/100 System Corruption 1% Temperature Cool (20) Movement Flying (32) Location -7/Garrison Parts ------- > --- POWER (2) -------- (None) > --- PROPULSION (4) --- Cooled VTOL Module Cooled VTOL Module > --- UTILITY (4) ------ Medium Storage Unit Core Analyzer > --- WEAPON (3) ------- (None) > --- INVENTORY (10) --- VTOL Module Relay Coupler [Swarmer] (31) Relay Coupler [Grunt] (30) Arc Projector Phase Cannon Heavy Missile Launcher Remote Datajack Plasma Cutter Peak State ------------ > --- POWER ------------ Micro Nuclear Core Light Fission Core > --- PROPULSION ------- Armored Treads Armored Huge Wheel Cooled VTOL Module > --- UTILITY ---------- Improved Heat Sink Huge Storage Unit Core Analyzer Hardlight Generator > --- WEAPON ----------- Enhanced Autogun Enhanced Autogun Enhanced Autogun > --- INVENTORY -------- Armored Huge Wheel VTOL Module VTOL Module Nuclear Pulse Thruster Improved Cooling System High-capacity Matter Pod Advanced Targeting Computer Core Analyzer Recoil Stabilizer Particle Charger Reaction Control System Hardlight Generator Hacking Suite Hacking Suite Relay Coupler [NC] High-powered Tractor Beam Phase Cannon Autogun Assault Cannon Improved Grenade Launcher Remote Datajack Plasma Cutter Plasma Flamer Scythe [Rating: 55] Favorites ----------- Power Heavy Ion Engine Engine Heavy Ion Engine Power Core Micro Nuclear Core Propulsion Light Treads Treads Light Treads Wheel Armored Huge Wheel Flight Unit Cooled VTOL Module Utility Huge Storage Unit Device Improved Heat Sink Storage Huge Storage Unit Processor Core Analyzer Hackware Relay Coupler [NC] Protection Reactive Plating Weapon Improved Assault Rifle Energy Gun EM Shotgun Energy Cannon Advanced Beam Cannon Ballistic Gun Improved Assault Rifle Ballistic Cannon Light Cannon Launcher Improved Grenade Launcher Special Weapon Remote Datajack Impact Weapon Heavy Flail Slashing Weapon Greatsword Build | -11 -10 -10 -9 -9 -9 -8 -8 -8 -8 -8 -7 -7 -7 -7 ------- Run | Yrd Mat Min Mat Min Exi Min Mat Gar Mat Gar Fac Was Fac Gar Slots Evolved 6 | . . . 2 . . . 2 . . . 2 . . . Power 1 | . . . . . . . . . . . 1 . . . Propulsion 2 | . . . 1 . . . . . . . 1 . . . Utility 2 | . . . . . . . 2 . . . . . . . Weapon 1 | . . . 1 . . . . . . . . . . . Parts Attached 184 | 8 16 1 35 4 . 10 31 15 8 5 30 . 8 13 Power 19 | 1 1 . 1 1 . 2 4 1 . 1 3 . 2 2 Engine 13 | 1 1 . 1 1 . 1 2 1 . . 2 . 1 2 Core 6 | . . . . . . 1 2 . . 1 1 . 1 . Reactor . | . . . . . . . . . . . . . . . Propulsion 52 | 2 3 . 13 2 . 3 7 6 3 . 8 . 1 4 Treads 39 | 2 3 . 13 2 . 3 7 6 2 . 1 . . . Leg . | . . . . . . . . . . . . . . . Wheel 1 | . . . . . . . . . 1 . . . . . Hover . | . . . . . . . . . . . . . . . Flight 12 | . . . . . . . . . . . 7 . 1 4 Utility 42 | 3 3 . 4 . . 1 8 4 2 2 11 . 1 3 Device 17 | 2 1 . 1 . . . 2 2 1 1 6 . 1 . Storage 7 | 1 2 . . . . . 2 . 1 . 1 . . . Processor 1 | . . . . . . . . 1 . . . . . . Hackware 8 | . . . 1 . . . 1 . . 1 3 . . 2 Protection 9 | . . . 2 . . 1 3 1 . . 1 . . 1 Artifact . | . . . . . . . . . . . . . . . Weapon 71 | 2 9 1 17 1 . 4 12 4 3 2 8 . 4 4 Energy Gun 14 | 1 4 . 3 . . 2 3 . . . . . . 1 Energy Cannon 7 | . . . 5 . . . . . . . 1 . 1 . Ballistic Gun 28 | 1 2 . 8 1 . . 6 2 2 1 3 . 1 1 Ballistic Cannon 7 | . 2 . . . . 1 2 . . 1 . . . 1 Launcher 4 | . . 1 1 . . 1 . . . . . . 1 . Special Weapon 4 | . 1 . . . . . . . . . 2 . . 1 Impact Weapon 2 | . . . . . . . . 1 . . 1 . . . Slashing Weapon 5 | . . . . . . . 1 1 1 . 1 . 1 . Piercing Weapon . | . . . . . . . . . . . . . . . Special Melee Weapon . | . . . . . . . . . . . . . . . Unidentified Prototypes 5 | . . . 3 . . . 1 . . . 1 . . . Parts Lost 36 | . 2 . 2 1 . 5 6 5 . . . . . 15 Power 4 | . . . . . . . . . . . . . . 4 Propulsion 9 | . 1 . . . . 1 3 . . . . . . 4 Utility 9 | . . . 1 . . 1 1 4 . . . . . 2 Weapon 14 | . 1 . 1 1 . 3 2 1 . . . . . 5 Highest Loss Streak 9 | . 2 . 1 1 . 2 3 2 . . . . . 9 To Critical Strikes 3 | . . . . . . . 1 1 . . . . . 1 Average Backups 21 | 5 16 25 24 24 25 24 24 24 24 24 9 10 9 9 Power 1 | . 1 2 2 1 1 1 1 1 1 1 . . . . Propulsion 4 | 3 4 4 5 4 3 3 4 3 4 4 1 1 1 . Utility 8 | . 4 8 9 12 15 14 10 10 10 10 3 3 2 1 Weapon 6 | . 5 10 7 4 5 4 6 6 6 6 3 4 4 4 Tool/Special . | . . . . . . . . . . . . . . . Unused Backups 69 | . 10 . 14 4 . . 11 5 1 . 17 . . 7 Power 4 | . 1 . 1 1 . . . . . . . . . 1 Propulsion 7 | . 4 . . . . . . . . . 2 . . 1 Utility 33 | . 3 . 2 3 . . 6 4 1 . 9 . . 5 Weapon 24 | . 2 . 11 . . . 5 . . . 6 . . . Tool/Special 1 | . . . . . . . . 1 . . . . . . Average Slot Usage (%) 97 | . 99 100 98 100 100 100 99 99 97 89 92 92 92 85 Engine 9 | . 14 14 10 11 11 8 7 9 9 6 . 7 3 3 Core 2 | . . . . . . 2 1 . . 2 14 7 11 6 Treads 24 | . 27 28 32 33 33 33 26 27 23 9 2 . . . Flight 3 | . . . . . . . . . . . 25 30 30 29 Device 9 | . 14 14 2 . . . 15 13 17 17 9 7 7 6 Storage 10 | . 14 14 11 11 11 11 9 9 9 9 4 7 7 7 Processor 2 | . . . . . . . . 4 9 9 7 7 7 7 Hackware 1 | . . . . . . . 1 . . . 7 7 7 5 Protection 5 | . . . 8 11 11 11 9 9 . . . . . . Energy Gun 3 | . 20 . . . . 5 5 . . . . . . . Ballistic Gun 17 | . 6 . 26 32 33 17 12 26 26 26 8 7 6 2 Ballistic Cannon 3 | . 1 27 . . . 9 8 . . . . . . 2 Peak Build Rating 55 | 8 12 11 23 25 24 25 34 36 44 46 55 50 53 51 Average Rating 27 | 6 9 11 20 22 24 23 30 31 35 44 50 50 50 43 On Entrance 28 | . 8 11 11 21 24 24 25 30 29 44 46 50 50 48 Naked Turns . | . . . . . . . . . . . . . . . Heaviest Build 123 | 14 93 93 107 108 108 111 123 116 103 103 108 30 31 31 Greatest Support 60 | 40 40 40 60 60 60 60 60 60 60 28 31 31 31 31 Greatest Overweight (x) 3 | . 2 2 2 1 1 1 3 1 3 3 3 . 2 2 Average Overweight (x) . | . . 2 1 1 1 1 1 1 1 3 . . . . Largest Inventory Capacity 25 | 8 25 25 25 25 25 25 25 25 25 25 25 10 10 10 Average Capacity 22 | 7 19 25 25 25 25 25 25 25 25 25 10 10 10 10 Most Carried 25 | 8 25 25 25 25 25 25 25 25 25 25 25 10 10 10 Average Carried 21 | 5 16 24 24 24 25 24 24 24 24 24 10 10 9 9 Final Capacity 25 | 8 25 25 25 25 25 25 25 25 25 25 10 10 10 10 Final Carried 25 | 8 25 25 25 25 25 25 25 25 25 25 10 10 10 8 Class Distribution -------------------- 41% | Scavenger-Tank 22% | Mutant 9% | Scavenger-Gunner 8% | Gunner 7% | Sprinter 6% | Tank Dominant Class ---------------- Mutant | -10/Materials Mutant | -10/Mines Scavenger-Tank | -9/Materials Scavenger-Tank | -9/Mines Scavenger-Tank | -9/Exiles Scavenger-Tank | -8/Mines Scavenger-Tank | -8/Materials Scavenger-Tank | -8/Garrison Scavenger-Gunner | -8/Materials Gunner | -8/Garrison Sprinter | -7/Factory Sprinter | -7/Waste Sprinter | -7/Factory Sprinter | -7/Garrison Resources | -11 -10 -10 -9 -9 -9 -8 -8 -8 -8 -8 -7 -7 -7 -7 ----------- Run | Yrd Mat Min Mat Min Exi Min Mat Gar Mat Gar Fac Was Fac Gar Matter Collected 9038 | 304 189 244 1397 371 . 507 1805 1108 870 911 512 . 263 557 Remotely . | . . . . . . . . . . . . . . . Salvage Created 12860 | 257 1014 256 2021 686 . 799 2005 1493 1129 1187 674 . 485 854 Parts 744 | 22 58 17 115 56 . 40 123 76 66 78 28 . 29 36 Haulers Intercepted 21 | . 2 . 6 . . . 6 . 4 . 3 . . . Recyclers Shooed 14 | . 4 . 4 . . 1 4 . . . . . 1 . Parts Field Recycled . | . . . . . . . . . . . . . . . Retrieved Matter . | . . . . . . . . . . . . . . . Parts Self-Destructed . | . . . . . . . . . . . . . . . Prevented . | . . . . . . . . . . . . . . . Kills | -11 -10 -10 -9 -9 -9 -8 -8 -8 -8 -8 -7 -7 -7 -7 ------- Run | Yrd Mat Min Mat Min Exi Min Mat Gar Mat Gar Fac Was Fac Gar Combat Hostiles Destroyed 244 | . 16 20 31 19 . 16 40 29 17 29 1 . 7 19 Melee 7 | . . . . . . . . . . . 1 . 3 3 Guns 155 | . 15 . 25 19 . 6 14 29 17 29 . . . 1 Cannons 36 | . . 5 4 . . 4 21 . . . . . . 2 AOE 43 | . 1 15 2 . . 6 4 . . . . . 4 11 Classes Destroyed 20 | 3 5 1 4 . . 1 3 2 . . . . . 1 Worker 22 | 2 2 . 5 . . 3 2 . 3 . 3 . 2 . Builder 11 | . 3 . . 1 . 1 5 . 1 . . . . . Tunneler 11 | 6 . . 1 2 . 1 . . . . . . 1 . Hauler 21 | . 2 . 6 . . . 6 . 4 . 3 . . . Recycler 25 | 1 3 1 5 1 . 2 2 . 1 . 5 . 4 . Carrier 1 | . . . . . . . . 1 . . . . . . Mechanic 3 | . . . 2 . . . 1 . . . . . . . Operator 5 | . . . 2 . . . 2 . . . . . 1 . Watcher 13 | . 2 . 5 . . . 3 . 3 . . . . . Swarmer 66 | . 6 3 11 7 . 4 7 1 6 8 . . 7 6 Cutter 2 | . . . . . . . . . . . . . . 2 Grunt 95 | . 10 4 9 12 . 9 18 17 4 10 . . . 2 Brawler 7 | . . . 1 . . 1 . 4 . 1 . . . . Duelist 4 | . . . . . . 2 1 . 1 . . . . . Sentry 40 | . . . 10 . . . 9 2 5 5 . . . 9 Specialist 3 | . . . . . . . 2 . 1 . . . . . Hunter 3 | . . . . . . . 2 1 . . . . . . Programmer 10 | . . . . . . . . 4 . 5 1 . . . Heavy 1 | . . . . . . . 1 . . . . . . . Assembled 13 | . . 13 . . . . . . . . . . . . Best Kill Streak 13 | 4 4 13 6 5 . 6 6 8 7 4 2 . 5 9 Combat Bots Only 13 | . 3 13 5 5 . 4 5 8 6 4 1 . 4 9 Max Kills in Single Turn 5 | 1 2 5 2 2 . 3 3 2 2 2 1 . 3 2 Gunslinging 1 | . 1 . . 1 . . . 1 1 1 . . . . Exploded 5 | . 1 5 1 . . 3 3 . . . . . 3 2 Melee 1 | . . . . . . . . . . . 1 . 1 1 Uniques/NPCs Destroyed . | . . . . . . . . . . . . . . . Combat | -11 -10 -10 -9 -9 -9 -8 -8 -8 -8 -8 -7 -7 -7 -7 -------- Run | Yrd Mat Min Mat Min Exi Min Mat Gar Mat Gar Fac Was Fac Gar Hostile Shots Fired 1219 | . 78 30 144 61 . 63 150 133 74 70 58 . 54 304 Missed 404 | . 22 8 24 16 . 12 37 35 25 18 41 . 28 138 Hits 815 | . 56 22 120 45 . 51 113 98 49 52 17 . 26 166 Melee 14 | . . 2 4 . . . . 6 1 . . . . 1 Projectile 801 | . 56 20 116 45 . 51 113 92 48 52 17 . 26 165 AOE 2 | . . . . . . . . . . . 1 . . 1 Critical Strikes 20 | . 1 1 3 . . 1 4 5 1 2 . . . 2 Part Disruptions 1 | . . . . . . . . . . . 1 . . . Damage Taken 9310 | . 766 294 1333 389 . 797 1507 1304 400 478 220 . 300 1522 Core 1206 | . 157 42 160 43 . 49 133 170 49 36 64 . 5 298 Absorbed by Shields 1025 | . . 109 68 . . . 274 213 192 169 . . . . Ignored by Resistances 407 | . . . 112 40 . 14 208 33 . . . . . . Regen/Repaired (Parts) 77 | . . . . . . . . . . . 15 . 62 . Core Remaining (%) 46 | 100 . 20 . . . 37 . . . 29 . . . . Volleys Fired 802 | 24 77 21 110 43 . 38 131 80 61 59 6 . 11 141 Largest 3 | 2 2 2 3 3 . 3 3 3 3 3 1 . 1 1 Hottest 211 | 70 100 60 211 100 . 121 165 71 75 75 100 . 85 100 Shots Fired 1875 | 47 151 32 316 109 . 108 377 225 187 165 6 . 11 141 Gun 1440 | 47 147 . 268 99 . 79 214 225 187 165 . . 1 8 Cannon 294 | . 2 23 41 . . 26 160 . . . . . 5 37 Launcher 30 | . . 9 3 . . 3 3 . . . . . 2 10 Special 111 | . 2 . 4 10 . . . . . . 6 . 3 86 Kinetic 1504 | 24 60 23 265 99 . 104 320 225 187 165 . . 1 31 Thermal 234 | 23 60 . 45 10 . 1 . . . . 1 . 5 89 Explosive 30 | . . 9 3 . . 3 3 . . . . . 2 10 Electromagnetic 89 | . 31 . 3 . . . 54 . . . . . . 1 Robot Hit Streak 29 | 8 12 7 22 8 . 8 25 13 9 17 8 . 2 29 Robot Miss Streak 12 | 5 6 2 4 3 . 4 12 4 5 5 . . 1 4 Penetration Max . | . . . . . . . . . . . . . . . Secondary Targets 31 | . 2 . 3 3 . . 1 9 6 7 . . . . Max Gunslinging Chain 1 | . 1 . 1 1 . . 1 1 1 1 . . . . Shots Hit Robots 1252 | 31 100 18 213 59 . 52 254 152 114 95 27 . 17 120 Core Hits 634 | 13 50 32 81 27 . 34 161 63 48 49 8 . 12 56 Critical Kills 4 | . . . . . . . . 2 1 1 . . . . Critical Parts Destroyed 10 | . 1 . 2 . . . . 3 4 . . . . . Critical Strikes 39 | 2 10 1 2 . . . 1 6 5 1 3 . . 8 Burn 14 | 2 9 . . . . . . . . . 1 . . 2 Destroy 15 | . 1 . 2 . . . . 6 5 1 . . . . Blast 3 | . . 1 . . . . . . . . . . . 2 Corrupt 1 | . . . . . . . 1 . . . . . . . Sever 6 | . . . . . . . . . . . 2 . . 4 Melee Attacks 146 | . . . . . . . 37 7 1 3 50 . 31 17 Impact 4 | . . . . . . . . 4 . . . . . . Slashing 142 | . . . . . . . 37 3 1 3 50 . 31 17 Piercing . | . . . . . . . . . . . . . . . Sneak Attacks 23 | . . . . . . . 2 . . . 13 . 8 . Combat Hostiles . | . . . . . . . . . . . . . . . Follow-up Attacks . | . . . . . . . . . . . . . . . Damage Inflicted 26415 | 312 1244 1096 3894 996 . 1483 4600 2383 1987 1697 1603 . 1678 3442 Guns 14105 | 312 1187 . 2877 969 . 607 2048 2383 1985 1697 . . . 40 Cannons 3799 | . . 244 574 . . 313 2056 . . . . . . 612 Explosions 3515 | . 43 852 351 . . 465 336 . . . . . 314 1154 Melee 3859 | . . . . . . . 122 . . . 1589 . 1364 784 Ramming 271 | . 14 . 92 27 . 98 38 . 2 . . . . . Kinetic 15504 | 139 319 244 2847 969 . 906 3499 2383 1985 1697 . . . 516 Thermal 2308 | 173 553 . 574 . . 14 . . . . 14 . . 980 Explosive 3472 | . . 852 351 . . 465 336 . . . . . 314 1154 Electromagnetic 1001 | . 358 . 30 . . . 605 . . . . . . 8 Impact . | . . . . . . . . . . . . . . . Slashing 3859 | . . . . . . . 122 . . . 1589 . 1364 784 Piercing . | . . . . . . . . . . . . . . . Highest Corruption 13 | . . . . . . . 1 12 12 13 1 6 6 1 Average Corruption 5 | . . . . . . . 1 4 12 12 1 4 1 1 Corruption Purged 5 | . . . . . . . . . . . . . 5 . Corruption Blocked . | . . . . . . . . . . . . . . . Effects 189 | . . . . . . . 11 45 64 47 6 1 8 7 Message Errors 52 | . . . . . . . 2 10 22 12 1 . 4 1 Matter Fused 40 | . . . . . . . 3 12 9 10 2 1 . 3 Heat Flow Errors 22 | . . . . . . . 1 4 6 9 2 . . . Energy Discharges 19 | . . . . . . . 1 4 9 1 1 . . 3 Parts Rejected 3 | . . . . . . . . . . 3 . . . . Parts Fused 1 | . . . . . . . . . 1 . . . . . Data Loss (minor) 23 | . . . . . . . . 9 6 6 . . 2 . Data Loss (major) 7 | . . . . . . . 1 1 1 2 . . 2 . Misfires 10 | . . . . . . . 1 3 6 . . . . . Alerts 5 | . . . . . . . 1 2 1 1 . . . . Misdirections 1 | . . . . . . . . . 1 . . . . . Weapon Failures 6 | . . . . . . . 1 . 2 3 . . . . Overload Shots . | . . . . . . . . . . . . . . . Overflow Damage 1106 | . . 43 38 . . 41 44 . . . 310 . 554 76 Projectiles 5 | . . . . . . . . . . . . . . 5 Explosions 197 | . . 43 38 . . 41 22 . . . . . . 53 Melee 904 | . . . . . . . 22 . . . 310 . 554 18 Knockbacks 40 | . . . . . . 2 38 . . . . . . . Impact 1 | . . . . . . 1 . . . . . . . . Kinetic 36 | . . . . . . 1 35 . . . . . . . Secondary 3 | . . . . . . . 3 . . . . . . . Self-Inflicted Damage 312 | . 107 73 . . . 71 . . . . . . . 61 Shots 8 | . 2 2 . . . 2 . . . . . . . 2 Rammed 32 | . 4 . 10 5 . 5 7 . 1 . . . . . Targets Rammed 36 | . 5 . 11 5 . 5 9 . 1 . . . . . Kicked . | . . . . . . . . . . . . . . . Crushed 4 | . 1 . 1 . . . 2 . . . . . . . Highest Temperature 416 | 80 281 16 237 181 . 416 329 233 246 253 276 . 216 334 Average Temperature 65 | 33 58 13 55 47 . 147 61 107 93 99 31 . 45 97 Received Heat Transfer 2857 | . 279 48 466 150 . 414 497 383 121 145 36 . 30 288 Effects 8 | . . . . . . 3 . 1 . 2 . . . 2 Shutdowns 2 | . . . . . . 2 . . . . . . . . Energy Bleed 1 | . . . . . . 1 . . . . . . . . Interference 5 | . . . . . . . . 1 . 2 . . . 2 Siege Activations . | . . . . . . . . . . . . . . . Martial Activations . | . . . . . . . . . . . . . . . Shielding Activations . | . . . . . . . . . . . . . . . Robots Disrupted 1 | . . . . . . . 1 . . . . . . . Combat Hostiles 1 | . . . . . . . 1 . . . . . . . Robots Corrupted 2 | . . . . . . 1 1 . . . . . . . Combat Hostiles 1 | . . . . . . . 1 . . . . . . . Parts Fried 11 | . 1 . . . . 2 8 . . . . . . . Impact Corruptions 1 | . . . . . . 1 . . . . . . . . Robots Melted 2 | . . . . . . . . . . . . . . 2 Combat Hostiles 2 | . . . . . . . . . . . . . . 2 Parts Melted 9 | 2 3 . 3 . . . . . . . . . . 1 Heat Transferred 8215 | 666 2183 . 999 . . 37 . . . . 240 . . 4090 Parts Sabotaged . | . . . . . . . . . . . . . . . Parts Stolen . | . . . . . . . . . . . . . . . Parts Stripped . | . . . . . . . . . . . . . . . Power Chain Reactions 1 | . 1 . . . . . . . . . . . . . Alert | -11 -10 -10 -9 -9 -9 -8 -8 -8 -8 -8 -7 -7 -7 -7 ------- Run | Yrd Mat Min Mat Min Exi Min Mat Gar Mat Gar Fac Was Fac Gar Maximum Alert Level 4 | . . . 2 1 . . 1 4 3 4 2 . 1 3 Low Security (%) 53 | 100 100 100 52 83 . 100 58 . . . . 100 80 12 Level 1 21 | . . . 26 16 . . 41 21 18 12 80 . 19 13 Level 2 13 | . . . 21 . . . . 19 70 30 19 . . 39 Level 3 7 | . . . . . . . . 31 11 52 . . . 34 Level 4 3 | . . . . . . . . 27 . 4 . . . . Level 5 . | . . . . . . . . . . . . . . . High Security . | . . . . . . . . . . . . . . . Max Security . | . . . . . . . . . . . . . . . Peak Influence 1509 | 15 173 115 525 281 . 104 368 1509 735 1122 588 143 231 830 Initial 735 | . . 52 17 201 . . 9 237 735 291 588 143 86 140 Average 280 | 2 62 19 201 107 . 34 175 826 523 750 358 136 152 562 Influence Increases 8890 | 45 591 235 1131 674 . 455 1326 1322 543 831 529 . 418 790 Destroy 0b10 Robot/C 4820 | . 320 140 620 560 . 320 800 600 340 580 20 . 140 380 Destroy 0b10 Robot/NC 580 | 45 60 5 130 20 . 35 105 . 60 . 55 . 40 25 Destroy Leader 858 | . 88 30 202 40 . 50 228 10 104 40 16 . 20 30 Allied During Kill 23 | . . . . 23 . . . . . . . . . . Successful Hack 290 | . 19 . 29 . . 7 47 14 21 21 72 . 46 14 Select Force Hacks 30 | . 30 . . . . . . . . . . . . . Disable Machine 210 | . 45 15 60 . . 15 30 . . . . . 15 30 Anti-Garrison Action 900 | . . . . . . . . 650 . 150 . . . 100 Destroy Structure 354 | . 29 45 15 1 . 28 41 18 3 10 21 . 37 106 Partial Spotted 150 | . . . . . . . . . . . 75 . 30 45 Lose Combat Pursuer 675 | . . . 75 30 . . 75 30 15 30 270 . 90 60 Influence Decreases 8110 | 45 456 324 659 944 248 429 986 179 1604 157 1242 286 341 210 Entered New Map 2651 | . . 83 29 317 248 . 17 129 774 157 534 266 37 60 Time Decay 4253 | 45 436 241 590 557 . 393 609 . 530 . 538 20 294 . Lost Part 346 | . 20 . 20 10 . 36 60 50 . . . . . 150 Lost Ally 90 | . . . . 60 . . . . . . 20 . 10 . Purge Threat 770 | . . . 20 . . . 300 . 300 . 150 . . . Squads Dispatched 28 | . 4 . 5 1 . . 6 . 1 . 10 . 1 . Investigation 13 | . 2 . 1 1 . . 2 . . . 7 . . . Extermination 4 | . . . . . . . . . . . 3 . 1 . Reinforcement 11 | . 2 . 4 . . . 4 . 1 . . . . . Assault . | . . . . . . . . . . . . . . . Garrison . | . . . . . . . . . . . . . . . Intercept . | . . . . . . . . . . . . . . . Searches Triggered . | . . . . . . . . . . . . . . . Construction Impeded . | . . . . . . . . . . . . . . . Haulers Reinforced . | . . . . . . . . . . . . . . . Active Scanning Responses . | . . . . . . . . . . . . . . . Cargo Convoy Interrupts . | . . . . . . . . . . . . . . . Stealth | -11 -10 -10 -9 -9 -9 -8 -8 -8 -8 -8 -7 -7 -7 -7 --------- Run | Yrd Mat Min Mat Min Exi Min Mat Gar Mat Gar Fac Was Fac Gar Distress Signals 9 | . 1 . 2 . . . 6 . . . . . . . Communications Jammed 9 | . . . . . . . . . . . . . 9 . Distress Signals 9 | . . . . . . . . . . . . . 9 . Times Spotted 378 | . 33 22 58 25 . 17 70 30 25 24 25 5 21 23 Peak Tracking Total 9 | . 4 9 6 4 . 4 6 5 6 6 5 5 6 6 Tactical Retreats 29 | . . . 4 2 . . 3 1 1 1 11 . 4 2 Traps | -11 -10 -10 -9 -9 -9 -8 -8 -8 -8 -8 -7 -7 -7 -7 ------- Run | Yrd Mat Min Mat Min Exi Min Mat Gar Mat Gar Fac Was Fac Gar Traps Triggered 46 | . 3 . 3 . . . 3 14 . 13 5 . 1 4 Indirectly . | . . . . . . . . . . . . . . . Trap Hack Attempts . | . . . . . . . . . . . . . . . Triggered . | . . . . . . . . . . . . . . . Disarmed . | . . . . . . . . . . . . . . . Reprogrammed . | . . . . . . . . . . . . . . . Reused . | . . . . . . . . . . . . . . . Traps Extracted . | . . . . . . . . . . . . . . . Installed . | . . . . . . . . . . . . . . . Triggered . | . . . . . . . . . . . . . . . Machines | -11 -10 -10 -9 -9 -9 -8 -8 -8 -8 -8 -7 -7 -7 -7 ---------- Run | Yrd Mat Min Mat Min Exi Min Mat Gar Mat Gar Fac Was Fac Gar Machines Disabled 19 | . 3 1 4 . . 1 2 2 . 1 . . 1 4 Max in Single Turn 2 | . 2 1 1 . . 1 1 1 . 1 . . 1 1 Garrison Access 4 | . . . . . . . . . . . 3 . 1 . Garrison Relay 4 | . . . . . . . . 2 . . . . . 2 Machines Repaired . | . . . . . . . . . . . . . . . Machines Dismantled . | . . . . . . . . . . . . . . . Machines Sabotaged . | . . . . . . . . . . . . . . . Overloaded Fab Kills . | . . . . . . . . . . . . . . . Hacking | -11 -10 -10 -9 -9 -9 -8 -8 -8 -8 -8 -7 -7 -7 -7 --------- Run | Yrd Mat Min Mat Min Exi Min Mat Gar Mat Gar Fac Was Fac Gar Machines Accessed 85 | . 8 . 11 1 1 1 14 2 7 5 25 . 8 2 Terminals 55 | . 6 . 9 . . 1 8 2 4 5 13 . 5 2 Fabricators 3 | . . . . . . . . . . . 2 . 1 . Repair Stations 3 | . . . . . . . 1 . . . 2 . . . Recycling Units 7 | . 2 . 1 . . . 2 . . . 2 . . . Scanalyzers 8 | . . . 1 . . . 2 . 2 . 3 . . . Garrison Access 7 | . . . . . . . 1 . 1 . 3 . 2 . Total Hacks 215 | . 17 . 34 1 1 4 47 4 23 8 58 . 14 4 Successful 94 | . 5 . 11 1 1 2 24 1 14 2 25 . 7 1 Failed 121 | . 12 . 23 . . 2 23 3 9 6 33 . 7 3 Catastrophic 31 | . 5 . 4 . . . 2 1 2 3 9 . 4 1 Database Lockouts . | . . . . . . . . . . . . . . . Manual 54 | . 10 . 21 . . 3 12 . 2 . 6 . . . Terminals 140 | . 12 . 28 . . 4 25 4 13 8 31 . 11 4 Fabricators 5 | . . . . . . . . . . . 4 . 1 . Repair Stations 9 | . . . . . . . 3 . . . 6 . . . Recycling Units 16 | . 5 . 2 . . . 5 . . . 4 . . . Scanalyzers 34 | . . . 4 . . . 11 . 9 . 10 . . . Garrison Access 9 | . . . . . . . 3 . 1 . 3 . 2 . Terminal Hacks 45 | . 4 . 6 1 1 2 9 1 7 2 7 . 4 1 Record 2 | . . . . . 1 1 . . . . . . . . Part Schematic 9 | . 1 . 3 . . 1 . . . . 3 . 1 . Robot Schematic 1 | . 1 . . . . . . . . . . . . . Robot Analysis 2 | . 1 . . . . . 1 . . . . . . . Prototype ID Bank 3 | . . . . . . . . . 1 . 1 . 1 . Open Door 2 | . . . . 1 . . . . . 1 . . . . Open DSF 1 | . . . . . . . . . . . . . 1 . Branch Access Points 2 | . . . 1 . . . 1 . . . . . . . Emergency Access Points 2 | . . . . . . . . . 1 . . . . 1 Terminal Index 1 | . . . . . . . . . 1 . . . . . Scanalyzer Index 1 | . . . . . . . . . . . 1 . . . Alert Level 1 | . . . . . . . 1 . . . . . . . Unreport Threat 6 | . . . 1 . . . 2 . 2 . 1 . . . Locate Traps 3 | . . . 1 . . . . . 1 . . . 1 . Reinforcement Status 1 | . 1 . . . . . . . . . . . . . Recall Investigation 1 | . . . . . . . 1 . . . . . . . Hauler Manifests 2 | . . . . . . . 1 . 1 . . . . . Zone Layout 3 | . . . . . . . 2 . . . 1 . . . Garrison Registry 1 | . . . . . . . . . . 1 . . . . Patrol Navigation 1 | . . . . . . . . 1 . . . . . . Fabricator Hacks 4 | . . . . . . . . . . . 3 . 1 . Network Status 1 | . . . . . . . . . . . 1 . . . Build 3 | . . . . . . . . . . . 2 . 1 . Repair Station Hacks 4 | . . . . . . . 1 . . . 3 . . . Scan Component 3 | . . . . . . . 1 . . . 2 . . . Repair 1 | . . . . . . . . . . . 1 . . . Recycling Unit Hacks 4 | . . . 1 . . . 1 . . . 2 . . . Retrieve Components 4 | . . . 1 . . . 1 . . . 2 . . . Scanalyzer 25 | . . . 4 . . . 10 . 6 . 5 . . . Insert Component 13 | . . . 2 . . . 5 . 3 . 3 . . . Analyze 12 | . . . 2 . . . 5 . 3 . 2 . . . Garrison Access Hacks 7 | . . . . . . . 1 . 1 . 3 . 2 . Unlock Access 3 | . . . . . . . 1 . 1 . . . 1 . Seal Access 4 | . . . . . . . . . . . 3 . 1 . Unauthorized Hacks 5 | . 1 . . . . . 2 . . . 2 . . . Terminals 2 | . . . . . . . 2 . . . . . . . Track 1 | . . . . . . . 1 . . . . . . . Assimilate 1 | . . . . . . . 1 . . . . . . . Fabricators . | . . . . . . . . . . . . . . . Repair Stations 1 | . . . . . . . . . . . 1 . . . Patch 1 | . . . . . . . . . . . 1 . . . Recycling Units 2 | . 1 . . . . . . . . . 1 . . . Reject 1 | . . . . . . . . . . . 1 . . . Tunnel 1 | . 1 . . . . . . . . . . . . . Scanalyzers . | . . . . . . . . . . . . . . . Garrison Access . | . . . . . . . . . . . . . . . Data Cores Recovered 2 | . . . . . . . 1 . . . . . 1 . Used . | . . . . . . . . . . . . . . . Hacking Detections 74 | . 7 . 11 . . 1 13 2 6 5 20 . 7 2 Full Trace Events 11 | . 1 . 2 . . . . 1 . 1 6 . . . Feedback Events . | . . . . . . . . . . . . . . . Feedback Blocked . | . . . . . . . . . . . . . . . Robot Schematics Acquired 1 | . 1 . . . . . . . . . . . . . Robots Built . | . . . . . . . . . . . . . . . Authchips . | . . . . . . . . . . . . . . . Time . | . . . . . . . . . . . . . . . Total Robot Build Rating . | . . . . . . . . . . . . . . . Part Schematics Acquired 20 | . 1 . 5 . . . 5 . 3 . 5 . 1 . Parts Built 6 | . . . . . . . . . . . 4 . 2 . Authchips . | . . . . . . . . . . . . . . . Time 184 | . . . . . . . . . . . 142 . 42 . Total Part Build Rating 30 | . . . . . . . . . . . 22 . 8 . Parts Repaired 1 | . . . . . . . . . . . 1 . . . Time 38 | . . . . . . . . . . . 38 . . . Parts Recycled . | . . . . . . . . . . . . . . . Recycled Matter . | . . . . . . . . . . . . . . . Retrieved Matter . | . . . . . . . . . . . . . . . Retrieved Components 24 | . . . 9 . . . 10 . . . 5 . . . Parts Scanalyzed 12 | . . . 2 . . . 5 . 3 . 2 . . . Part Schematics Acquired 12 | . . . 2 . . . 5 . 3 . 2 . . . Parts Damaged 1 | . . . . . . . . . . . 1 . . . Bothacking | -11 -10 -10 -9 -9 -9 -8 -8 -8 -8 -8 -7 -7 -7 -7 ------------ Run | Yrd Mat Min Mat Min Exi Min Mat Gar Mat Gar Fac Was Fac Gar Used RIF Installer 4 | . . . . . . . . 1 . 2 . . . 1 Signal Jammer 1 | . . . . . . . . . . 1 . . . . Zone Cloak 2 | . . . . . . . . . . 1 . . . 1 Robots Hacked 11 | . . . . . . . . . . . 3 . 1 7 Non-combat 4 | . . . . . . . . . . . 3 . 1 . Combat 7 | . . . . . . . . . . . . . . 7 Robot Hacks Applied 12 | . . . . . . . . . . . 3 . 1 8 find_chute 2 | . . . . . . . . . . . 2 . . . drop_inventory 1 | . . . . . . . . . . . 1 . . . disrupt_area 1 | . . . . . . . . . . . . . . 1 amplify_resonance 1 | . . . . . . . . . . . . . . 1 disable_weapons 6 | . . . . . . . . . . . . . . 6 formatsys_low 1 | . . . . . . . . . . . . . 1 . Relay Couplers Released 20 | . . . . . . . . 12 . . . . . 8 Machine Destruction 16 | . . . . . . . . 8 . . . . . 8 Programmers 4 | . . . . . . . . 4 . . . . . . Attached 4 | . . . . . . . . . . 1 1 . . 2 Fabnet Peak Effective % . | . . . . . . . . . . . . . . . Robots Rewired . | . . . . . . . . . . . . . . . Allies Hacked . | . . . . . . . . . . . . . . . Hacks Repelled . | . . . . . . . . . . . . . . . Allies | -11 -10 -10 -9 -9 -9 -8 -8 -8 -8 -8 -7 -7 -7 -7 -------- Run | Yrd Mat Min Mat Min Exi Min Mat Gar Mat Gar Fac Was Fac Gar Total Allies 5 | . . . . 3 . . . . . 1 . . 1 . Largest Group 3 | . . . . 3 . . . . . 1 1 . 1 . Highest-Rated Group 40 | . . . . 40 . . . . . 25 25 . 23 . Highest-Rated Ally 25 | . . . . 16 . . . . . 25 25 . 23 . Total Orders 1 | . . . . . . . . . . . . . 1 . AID 1 | . . . . . . . . . . . . . 1 . Ally Attacks 50 | . . . . 49 . . . . . . 1 . . . Total Damage 439 | . . . . 406 . . . . . . 33 . . . Kills 10 | . . . . 10 . . . . . . . . . . Allies Corrupted . | . . . . . . . . . . . . . . . Allies Melted . | . . . . . . . . . . . . . . . Intel | -11 -10 -10 -9 -9 -9 -8 -8 -8 -8 -8 -7 -7 -7 -7 ------- Run | Yrd Mat Min Mat Min Exi Min Mat Gar Mat Gar Fac Was Fac Gar Active Infowar (turns) 3033 | 168 2865 . . . . . . . . . . . . . Seismic 3033 | 168 2865 . . . . . . . . . . . . . Robot Analysis Total 2 | . 1 . . . . . 1 . . . . . . . Derelict Logs Recovered . | . . . . . . . . . . . . . . . Drone Launches . | . . . . . . . . . . . . . . . Drone Recoveries . | . . . . . . . . . . . . . . . Exploration | -11 -10 -10 -9 -9 -9 -8 -8 -8 -8 -8 -7 -7 -7 -7 ------------- Run | Yrd Mat Min Mat Min Exi Min Mat Gar Mat Gar Fac Was Fac Gar Turns Passed 24629 | 269 2977 1436 3723 1926 461 1949 3555 2481 1487 1255 1536 43 649 882 Spaces Moved 12258 | 117 987 430 1286 706 193 752 1118 869 602 675 2740 140 874 769 Core 40 | 4 . . . . . . . . . . . . 1 35 Treads 6881 | 113 987 430 1286 706 193 752 1118 869 427 . . . . . Legs . | . . . . . . . . . . . . . . . Wheels 991 | . . . . . . . . . 175 675 141 . . . Hover . | . . . . . . . . . . . . . . . Flight 4346 | . . . . . . . . . . . 2599 140 873 734 Fastest Speed 26 | 50 160 320 240 240 240 240 240 240 145 145 27 28 28 26 Average Speed 158 | 156 239 320 240 240 240 240 240 240 212 145 34 28 28 30 Slowest Speed 400 | 160 320 320 320 240 240 240 400 240 240 145 145 28 150 150 Overloaded Moves . | . . . . . . . . . . . . . . . Propulsion Burnouts . | . . . . . . . . . . . . . . . Robots Hopped 8 | . . . . . . . . . . . 2 . 5 1 Potential Cave-ins 3 | . . . . . . . . . . . . . 3 . Cave-ins Triggered . | . . . . . . . . . . . . . . . Exploration Rate (%) 71 | 6 99 81 97 98 52 99 88 75 61 76 62 89 25 71 Regions Visited 14 Branch Regions 4 Pre-discovered Areas 2 | . 1 . . . 1 . . . . . . . . . Known Exits Taken 4 | . . . 1 . . . 1 . 1 . . . 1 . Unknown Exits Taken 6 | 1 1 1 . 1 1 1 . . . . . . . . Scrap Searched 6 | . . 1 . 2 . 3 . . . . . . . . Spaces Dug 157 | . . 17 2 . . . 15 3 1 . 21 . 35 63 Terrain Destroyed 331 | . 34 71 10 1 . 31 34 3 1 . 21 . 35 90 Melee 54 | . . . . . . . 15 3 1 . 21 . 14 . Projectile 12 | . . . 5 1 . . 1 . . . . . 5 . AOE 265 | . 34 71 5 . . 31 18 . . . . . 16 90 Terrain Rammed . | . . . . . . . . . . . . . . . Walls Destroyed . | . . . . . . . . . . . . . . . Machines Disabled . | . . . . . . . . . . . . . . . Actions | -11 -10 -10 -9 -9 -9 -8 -8 -8 -8 -8 -7 -7 -7 -7 --------- Run | Yrd Mat Min Mat Min Exi Min Mat Gar Mat Gar Fac Was Fac Gar Total 15737 | 158 1459 459 1679 835 192 812 1636 1103 740 882 3264 143 1195 1180 Wait 1539 | . 317 1 140 58 . 2 231 48 46 28 298 4 240 126 Move 12232 | 116 986 429 1285 705 192 751 1118 868 602 674 2736 139 864 767 Hop 7 | . . . . . . . . . . . 2 . 4 1 Pick Up 184 | 9 36 2 35 9 . 3 30 18 5 2 24 . 2 9 Fast Attach 75 | 7 1 . 10 . . . 7 6 4 6 23 . 4 7 Attach 72 | . 4 . 9 1 . 5 8 10 . 1 16 . 2 16 Detach 19 | . . . . . . . 2 2 . . 4 . . 11 Swap 158 | 1 12 4 32 5 . 7 26 14 6 8 10 . 13 20 Drop 240 | 1 21 2 47 9 . 1 37 24 14 7 59 . 7 11 Fire 802 | 24 77 21 110 43 . 38 131 80 61 59 6 . 11 141 Melee 146 | . . . . . . . 37 7 1 3 50 . 31 17 Ram . | . . . . . . . . . . . . . . . Kick . | . . . . . . . . . . . . . . . Crush 36 | . 5 . 11 5 . 5 9 . 1 . . . . . Escape Stasis 227 | . . . . . . . . 26 . 94 36 . 17 54 Rewire . | . . . . . . . . . . . . . . . Trap . | . . . . . . . . . . . . . . . Miscellaneous . | . . . . . . . . . . . . . . . Route ------- -11/Scrapyard -10/Materials (discovered 5 exits: *Mat x3 / [*Min] / [*Sub]) -10/Mines (discovered 2 exits: *Mat / [*Sub]) -9/Materials (discovered 5 exits: *Mat x3 / *Min x2) -9/Mines (discovered 3 exits: *Mat x2 / *Exi) -9/Exiles -8/Mines (discovered 2 exits: *Mat x2) -8/Materials (discovered 3 exits: *Fac x2 / Gar) -8/Garrison (discovered 3 exits: *Mat x3) -8/Materials (discovered 2 exits: *Fac / Gar) -8/Garrison (discovered 3 exits: *Fac x3) -7/Factory (discovered 4 exits: [*Fac x3] / [*Low]) -7/Waste -7/Factory (discovered 2 exits: [*Low] / Gar) -7/Garrison (discovered 1 exit: [*Fac]) History --------- Turn | Location | Event 30 | -11/Scrapyard | Discovered new exit (range 14) 270 | -11/Scrapyard | Entered Materials 306 | -10/Materials | Discovered new exit (range 9) 315 | -10/Materials | Build established: Mutant 727 | -10/Materials | Discovered new exit (range 15) 1895 | -10/Materials | Discovered new exit (range 10) 2124 | -10/Materials | Discovered new exit (range 13) 2377 | -10/Materials | Discovered new exit (range 12) 2737 | -10/Materials | Core integrity fell below 50% 3247 | -10/Materials | Entered Mines 3462 | -10/Mines | Found a hidden stash of uninstalled traps 3569 | -10/Mines | Discovered new exit (range 9) 4048 | -10/Mines | Assembled infested the area 4107 | -10/Mines | Destroyed 13 combat bots 4273 | -10/Mines | Received a Rocket Launcher from a helpful Derelict 4635 | -10/Mines | Discovered new exit (range 12) 4683 | -10/Mines | Entered Materials 4683 | -9/Materials | Evolved 2 slots: Propulsion x1, Weapon x1 5004 | -9/Materials | Build established: Tank 5364 | -9/Materials | Build established: Gunner 5408 | -9/Materials | Identified exit to Mines 5810 | -9/Materials | Discovered new exit (range 9) 6113 | -9/Materials | Build established: Scavenger-Tank 6392 | -9/Materials | Discovered new exit (range 14) 6936 | -9/Materials | Discovered new exit (range 3) 8406 | -9/Materials | Entered Mines 8554 | -9/Mines | Excavation squad dispatched 8554 | -9/Mines | A large section of the Mines collapsed 8649 | -9/Mines | Assisted by bots powering up and referring to "LRC-V3" 8804 | -9/Mines | Excavation squad dispatched 9054 | -9/Mines | Excavation squad dispatched 9069 | -9/Mines | A weapon hastily lodged in a ceiling crevice suddenly fell to the ground 9193 | -9/Mines | Met a Derelict shopkeep closing up shop 9290 | -9/Mines | Lost 3 allies 9304 | -9/Mines | Excavation squad dispatched 9373 | -9/Mines | Deemed a non-threat by the Exiles lab entrance 9373 | -9/Mines | Discovered new exit (range 5) 9606 | -9/Mines | Discovered new exit (range 8) 9695 | -9/Mines | Discovered new exit (range 2) 10070 | -9/Mines | Core integrity fell below 50% 10332 | -9/Mines | Entered Exiles 10390 | -9/Exiles | Met 8R-AWN 10433 | -9/Exiles | Met EX-HEX 10570 | -9/Exiles | Met EX-DEC 10685 | -9/Exiles | Learned location of Zion (-6) 10767 | -9/Exiles | Discovered new exit (range 12) 10793 | -9/Exiles | Entered Mines 10872 | -8/Mines | Discovered new exit (range 8) 11754 | -8/Mines | Discovered new exit (range 15) 12742 | -8/Mines | Entered Materials 12742 | -8/Materials | Evolved 2 slots: Utility x2 13573 | -8/Materials | Lost 3 parts (2n1u) 13626 | -8/Materials | Lost 3 parts (1n2w) 13766 | -8/Materials | Build established: Tank 14526 | -8/Materials | Discovered new exit (range 10) 14769 | -8/Materials | Build established: Scavenger-Tank 15282 | -8/Materials | Discovered new exit (range 15) 16297 | -8/Materials | Identified exit to Garrison 16297 | -8/Materials | Entered Garrison 16395 | -8/Garrison | Triggered checkpoint 16464 | -8/Garrison | Garrison Relay disabled 16569 | -8/Garrison | Triggered checkpoint 16754 | -8/Garrison | Triggered checkpoint 16825 | -8/Garrison | Triggered checkpoint 16933 | -8/Garrison | Triggered checkpoint 17015 | -8/Garrison | Garrison Relay disabled 17077 | -8/Garrison | Discovered new exit (range 10) 17108 | -8/Garrison | Installed Relay Interface Framework 17362 | -8/Garrison | Destroyed 8 combat bots 17486 | -8/Garrison | Discovered new exit (range 12) 17513 | -8/Garrison | Triggered checkpoint 18029 | -8/Garrison | Build established: Scavenger-Gunner 18061 | -8/Garrison | Triggered checkpoint 18263 | -8/Garrison | Spotted B-75 Beast 18263 | -8/Garrison | Spotted B-75 Beast 18337 | -8/Garrison | Triggered checkpoint 18427 | -8/Garrison | Core integrity fell below 50% 18429 | -8/Garrison | System corruption reached 10% 18609 | -8/Garrison | Triggered checkpoint 18744 | -8/Garrison | Discovered new exit (range 14) 18778 | -8/Garrison | Entered Materials 20062 | -8/Materials | Discovered new exit (range 8) 20256 | -8/Materials | Build established: Gunner 20265 | -8/Materials | Identified exit to Garrison 20265 | -8/Materials | Entered Garrison 20269 | -8/Garrison | Triggered checkpoint 20313 | -8/Garrison | Expanded RIF knowledge: Zone Cloak 20401 | -8/Garrison | Triggered checkpoint 20555 | -8/Garrison | Triggered checkpoint 20653 | -8/Garrison | Triggered checkpoint 20719 | -8/Garrison | Discovered new exit (range 14) 20803 | -8/Garrison | Triggered checkpoint 20935 | -8/Garrison | Triggered checkpoint 21054 | -8/Garrison | Discovered new exit (range 12) 21054 | -8/Garrison | Discovered new exit (range 40) 21054 | -8/Garrison | Discovered new exit (range 44) 21396 | -8/Garrison | Rescued a captive Derelict 21453 | -8/Garrison | Expanded RIF knowledge: Signal Jamming 21520 | -8/Garrison | Entered Factory 21520 | -7/Factory | Accompanied by 1 ally 21520 | -7/Factory | Evolved 2 slots: Power x1, Propulsion x1 21815 | -7/Factory | Discovered new exit (range 16) 21900 | -7/Factory | Fabricated Power Maul? 22179 | -7/Factory | Repaired Cesium-ion Thruster 22244 | -7/Factory | Discovered new exit (range 4) 22371 | -7/Factory | Fabricated Imp. Linear Gravjet? 22512 | -7/Factory | Build established: Sprinter 22539 | -7/Factory | Discovered new exit (range 4) 22998 | -7/Factory | Discovered new exit (range 9) 23056 | -7/Factory | Manually triggered Chute Trap 23056 | -7/Factory | Sucked down chute 23056 | -7/Factory | Entered Waste 23065 | -7/Waste | Spotted C-40 Crusher 23070 | -7/Waste | Spotted C-40 Crusher 23070 | -7/Waste | Spotted C-40 Crusher 23071 | -7/Waste | EMP discharged 23071 | -7/Waste | Spotted C-40 Crusher 23077 | -7/Waste | Spotted C-40 Crusher 23084 | -7/Waste | Spotted C-40 Crusher 23096 | -7/Waste | Discovered new exit (range 12) 23099 | -7/Waste | Entered Factory 23223 | -7/Factory | Identified exit to DSF 23291 | -7/Factory | Discovered new exit (range 15) 23654 | -7/Factory | Fabricated Mic. Nuclear Core? 23747 | -7/Factory | Identified exit to Garrison 23748 | -7/Factory | Entered Garrison 23772 | -7/Garrison | Expanded RIF knowledge: Zone Cloak 23792 | -7/Garrison | Triggered checkpoint 23862 | -7/Garrison | Garrison Relay disabled 23921 | -7/Garrison | Triggered checkpoint 24121 | -7/Garrison | Triggered checkpoint 24129 | -7/Garrison | Triggered checkpoint 24153 | -7/Garrison | Lost 4 parts (1p1n2w) 24156 | -7/Garrison | Destroyed 9 combat bots 24328 | -7/Garrison | Triggered checkpoint 24361 | -7/Garrison | Garrison Relay disabled 24464 | -7/Garrison | Discovered new exit (range 12) 24564 | -7/Garrison | Triggered checkpoint 24630 | -7/Garrison | Core integrity fell below 50% 24630 | -7/Garrison | Self-destructed Last Messages --------------- >>amplify_resonance Amplifying resonance, compromised power stability. 24565_ Y-54 Guardian Imp. Deuterium Engine critical resonance detonation. 24578_ Jacked Y-54 Guardian... >>disrupt_area Initiated network disruption routine. 24581_ Y-54 Guardian destroyed. 24581_ Mic. Nuclear Core destroyed. 24581_ Relay Coupler [Sentry] destroyed. 24584_ Autogun destroyed. 24596_ VTOL Module destroyed. 24612_ Y-54 Guardian Lgt. Treads blasted off. 24612_ Y-54 Guardian destroyed. 24614_ Imp. Ion Engine destroyed. 24614_ VTOL Module destroyed. 24614_ Adv. Weight Redist. System destroyed. 24624_ Y-54 Guardian Imp. Light Armor Plating blasted off. 24625_ Plasma Flamer destroyed. 24629_ Adv. Assault Cannon destroyed. Map ----- +----------------------------------------------------+ | ?????????????????????????????????????????????????? | | ?????????????????????????????????????????????????? | | ?????????????????????????????????????????????????? | | ?????????????????????????????????????????????????? | | ?????????????????????????????????????????????????? | | ??????????????????????##""####???????????????????? | | ???????????????????????T ##??????????????????? | | ???????????????????????# #??????????????????? | | ???????????????????????# #??????????????????? | | ???????????????????????# #???????????????????? | | ???????????????????????## ####???????????????????? | | ????????????????????????# #??????????????????????? | | ????????????????????????# #??#???????????????????? | | ??????+?????????????????# ## # #???????????????? | | ???????+????????????????#% #???????????????? | | ???? ??????????????????#!## # #???????????????? | | ???? ??????????????????#!#??????????????????????? | | ???? ??????????????????#%#??????????????????????? | | ???# ?+????????????????#%#??????????????????????? | | ???" "?????????????????#%#??????????????????????? | | ???" "?????????????????#%#??????????????????????? | | ???" "?????????????????#=#?????+????????????????? | | ???# #?????????????????# #??????????????????????? | | ???# #?????????????????# #??????????????????????? | | ??## ###########???????# #??????????????????????? | | ??? #?###??##@######/### #???????????? | | ???% ??? +? #??# Y ????????? | | ???# #???+??# #?# #??#% ????????? | | ???# #??????# #?# #??# %######+## #???????????? | | ???# #??????# #?# #??# #??????????????????????? | | ???# #??????# #?# #??# +??????????????????????? | | ???# #??????# #?# #??# #??????????????????????? | | ???# +??????+ ### #### #??????????????????????? | | ???# #??????# ## [ ## #??????????????????????? | | ???# #???#### # = ## ##?????????????????????? | | ???# ###+# ####+?????????????????? | | ???# %* ??????????????? | | ???# ! #???????????? | | ???##+####### # # ###########???????????? | | ??????????### # #?????????????????????? | | ????# ##### = "?????????????????????? | | ????# ! = "?????????????????????? | | ????#######= "?????????????????????? | | ########### = "?????????????????????? | | # = ### ## #?????????????????????? | | ## = ## #############?????????? | | ## #?????????? | | !=/ ? #?????????? | | # # =# ## ####+##??# #?????????? | | ###^ # ### ##"### %###+##????????# #?????????? | +----------------------------------------------------+ Best States ------------- Heat Dissipation 48 Energy Generation 28 Energy Capacity 315 Matter Stores 300 Matter Capacity 300 Sight Range 16 Terrain Scan Density 10 Additional Mass Support 9 Armor Coverage 375 Resistance: KI 20 Evasion (%) 72 Core Analysis 6 Recoil Reduction 3 Offensive Hacking 20 Relay Coupler Types 1 Relay Coupler Value 33 Item Schematics ----------------- Huge Storage Unit | -10/Materials | Hacked Hacking Suite | -9/Materials | Scanalyzed Plasma Cutter | -9/Materials | Scanalyzed Lgt. Assault Rifle | -9/Materials | Hacked Ion Engine | -9/Materials | Hacked Lgt. Armor Plating | -9/Materials | Hacked Plasma Flamer | -8/Materials | Scanalyzed Imp. Cooling System | -8/Materials | Scanalyzed Core Analyzer | -8/Materials | Scanalyzed Targeting Computer | -8/Materials | Scanalyzed Gauss Rifle | -8/Materials | Scanalyzed Enh. Autogun | -8/Materials | Scanalyzed Mic. Nuclear Core | -8/Materials | Scanalyzed Reaction Control System | -8/Materials | Scanalyzed Greatsword | -7/Factory | Scanalyzed Xenon Bombardment Thruster | -7/Factory | Hacked Adv. Melee Analysis Suite | -7/Factory | Hacked Phase Cannon | -7/Factory | Scanalyzed Component Analysis Suite | -7/Factory | Hacked Hvy. Phase Cannon | -7/Factory | Hacked Robot Schematics ------------------ M-13 Machinist | -10/Materials | Hacked Fabricated ------------ Power Maul | x2 | -7/Factory | Preloaded Imp. Linear Gravjet | x2 | -7/Factory | Preloaded Mic. Nuclear Core | x2 | -7/Factory | Preloaded Repaired ---------- Cesium-ion Thruster | 48% | -7/Factory Alien Tech Used ----------------- None Achievements -------------- None Challenges ------------ None Game ------ Seed CryofiberSpliceCutter Manual? 0 Play Time 02:47:40 Cumulative 820.8 hours Start 2025.05.22 @ 22:19:58 End 2025.05.24 @ 13:16:08 Sessions 3 Manual Loads 0 Difficulty Rogue Special Mode None Game No. 465 Rogue 465 Adventurer 0 Explorer 0 Win Type - Total 22 Types 10/3/3/0/1/1/2/2/0/0 Lore% 79 Gallery% 83 Achievement% 82 Wizard Run 0 Options --------- Layout 0 ASCII 0 Keyboard 0 Movement Numpad Keybinds 0 Fullscreen 2 Font 24/Smallcaps Map View 76x50 Zoom Use 0% Tactical HUD 1 Map Filters NONE Filters NONE Steam 1 RUN: 9425f214-236c-429f-8d46-1e7591d42647